[Event "Early-Titled-Tuesday-Blitz-October-10-2023"]
[Site "Chess.com"]
[Date "2023.10.10"]
[Round "6"]
[White "Mr_Lion22"]
[Black "Hilary46"]
[Result "0-1"]
[WhiteElo "2517"]
[BlackElo "2670"]
[TimeControl "180+1"]
[EndTime "9:05:19 PDT"]
[Termination "Hilary46 won on time"]

1. d4 {[%clk 0:03:00.9]} 1... d5 {[%clk 0:02:59.4]} 2. c4 {[%clk 0:03:01.1]}
2... e6 {[%clk 0:02:58.9]} 3. Nc3 {[%clk 0:03:01.4]} 3... c6 {[%clk 0:02:57.8]}
4. e4 {[%clk 0:03:00.8]} 4... dxe4 {[%clk 0:02:56.9]} 5. Nxe4 {[%clk 0:03:01.7]}
5... Bb4+ {[%clk 0:02:56.7]} 6. Bd2 {[%clk 0:03:01.6]} 6... Qxd4 {[%clk
0:02:57.4]} 7. Bxb4 {[%clk 0:03:02]} 7... Qxe4+ {[%clk 0:02:58.1]} 8. Be2 {[%clk
0:03:02.5]} 8... Na6 {[%clk 0:02:57.7]} 9. Ba5 {[%clk 0:02:59.5]} 9... b6 {[%clk
0:02:56.8]} 10. Qd6 {[%clk 0:02:59.9]} 10... Bd7 {[%clk 0:02:55.4]} 11. O-O-O
{[%clk 0:02:57.5]} 11... O-O-O {[%clk 0:02:54.8]} 12. Bc3 {[%clk 0:02:50.3]}
12... f6 {[%clk 0:02:55.2]} 13. Rd4 {[%clk 0:02:36.8]} 13... Qxg2 {[%clk
0:02:51.8]} 14. Bf3 {[%clk 0:02:35]} 14... Qg5+ {[%clk 0:02:52.2]} 15. Rd2
{[%clk 0:02:28.5]} 15... Qc5 {[%clk 0:02:48.5]} 16. Qg3 {[%clk 0:02:28]} 16...
g6 {[%clk 0:02:31.2]} 17. b3 {[%clk 0:01:46.5]} 17... e5 {[%clk 0:02:30.4]} 18.
Qh4 {[%clk 0:01:22.3]} 18... g5 {[%clk 0:02:30.1]} 19. Qh5 {[%clk 0:01:21.3]}
19... Ne7 {[%clk 0:02:29.6]} 20. Ne2 {[%clk 0:01:21.5]} 20... Ng6 {[%clk
0:02:14.8]} 21. Ng3 {[%clk 0:01:18.1]} 21... Nf4 {[%clk 0:02:10.2]} 22. Qh6
{[%clk 0:01:11.8]} 22... Qe7 {[%clk 0:02:04.6]} 23. Ne4 {[%clk 0:01:09.2]} 23...
Rhf8 {[%clk 0:01:59.3]} 24. Rhd1 {[%clk 0:01:04.6]} 24... Kc7 {[%clk 0:01:59]}
25. Rd6 {[%clk 0:00:56.1]} 25... Ne6 {[%clk 0:01:27.8]} 26. Nxf6 {[%clk
0:00:35.9]} 26... Qxf6 {[%clk 0:00:48.4]} 27. Qxf6 {[%clk 0:00:34.8]} 27... Rxf6
{[%clk 0:00:49.3]} 28. Bxe5 {[%clk 0:00:34.9]} 28... Rxf3 {[%clk 0:00:49.8]} 29.
Rxd7+ {[%clk 0:00:13.2]} 29... Kc8 {[%clk 0:00:49.8]} 30. Rxh7 {[%clk
0:00:08.8]} 30... Rxd1+ {[%clk 0:00:47.8]} 31. Kxd1 {[%clk 0:00:09.7]} 31...
Rxf2 {[%clk 0:00:41.6]} 32. Rxa7 {[%clk 0:00:09.4]} 32... Nac7 {[%clk
0:00:41.1]} 33. a4 {[%clk 0:00:06.8]} 33... Rf5 {[%clk 0:00:35.4]} 34. Bg3
{[%clk 0:00:06.4]} 34... Rf3 {[%clk 0:00:35.8]} 35. a5 {[%clk 0:00:05.2]} 35...
bxa5 {[%clk 0:00:35]} 36. Rxa5 {[%clk 0:00:06]} 36... Rxb3 {[%clk 0:00:34.2]}
37. Ke2 {[%clk 0:00:04]} 37... Nd4+ {[%clk 0:00:33.7]} 38. Kd2 {[%clk 0:00:04]}
38... Nce6 {[%clk 0:00:33.8]} 39. Kc1 {[%clk 0:00:01.6]} 39... Rc3+ {[%clk
0:00:32.6]} 40. Kd2 {[%clk 0:00:01.1]} 40... Rxc4 {[%clk 0:00:33.5]} 41. Kd3
{[%clk 0:00:01.4]} 41... Rb4 {[%clk 0:00:32.4]} 42. Ke4 {[%clk 0:00:01.5]} 42...
Nb5+ {[%clk 0:00:28]} 43. Ke5 {[%clk 0:00:01.5]} 43... Nec7 {[%clk 0:00:28.2]}
44. Kf5 {[%clk 0:00:01.3]} 44... g4 {[%clk 0:00:27.8]} 45. Kg5 {[%clk
0:00:01.4]} 45... Kb7 {[%clk 0:00:27.9]} 46. Ra1 {[%clk 0:00:01.7]} 46... c5
{[%clk 0:00:26.7]} 47. Rc1 {[%clk 0:00:01.2]} 47... Kc6 {[%clk 0:00:25.9]} 48.
Be1 {[%clk 0:00:01.6]} 48... Re4 {[%clk 0:00:24.1]} 49. Bf2 {[%clk 0:00:01.7]}
49... Ne6+ {[%clk 0:00:22.3]} 50. Kf6 {[%clk 0:00:01]} 50... c4 {[%clk
0:00:18.3]} 51. Kf5 {[%clk 0:00:01.2]} 51... Nd6+ {[%clk 0:00:18.5]} 0-1

[Event "Early-Titled-Tuesday-Blitz-October-10-2023"]
[Site "Chess.com"]
[Date "2023.10.10"]
[Round "6"]
[White "Ishowmoves57"]
[Black "vedantgoswami"]
[Result "0-1"]
[WhiteElo "2176"]
[BlackElo "2384"]
[TimeControl "180+1"]
[EndTime "9:05:20 PDT"]
[Termination "vedantgoswami won by resignation"]

1. e4 {[%clk 0:02:59.5]} 1... c6 {[%clk 0:02:57.3]} 2. Nc3 {[%clk 0:02:56.8]}
2... d5 {[%clk 0:02:57.2]} 3. Nf3 {[%clk 0:02:57.4]} 3... g6 {[%clk 0:02:56.3]}
4. d4 {[%clk 0:02:52]} 4... dxe4 {[%clk 0:02:55]} 5. Nxe4 {[%clk 0:02:51.8]}
5... Bg7 {[%clk 0:02:55]} 6. c3 {[%clk 0:02:49.5]} 6... Bf5 {[%clk 0:02:52.2]}
7. Bd3 {[%clk 0:02:49.7]} 7... Bxe4 {[%clk 0:02:50.9]} 8. Bxe4 {[%clk
0:02:49.9]} 8... Nf6 {[%clk 0:02:51.6]} 9. Bd3 {[%clk 0:02:49.1]} 9... O-O
{[%clk 0:02:51.8]} 10. O-O {[%clk 0:02:49.7]} 10... Nbd7 {[%clk 0:02:51.2]} 11.
Bf4 {[%clk 0:02:47.4]} 11... Nd5 {[%clk 0:02:46.5]} 12. Bg3 {[%clk 0:02:45.7]}
12... Re8 {[%clk 0:02:45.4]} 13. Ne5 {[%clk 0:02:44.6]} 13... Nxe5 {[%clk
0:02:44.5]} 14. Bxe5 {[%clk 0:02:45.5]} 14... Bxe5 {[%clk 0:02:42.1]} 15. dxe5
{[%clk 0:02:44.2]} 15... Qb6 {[%clk 0:02:37.9]} 16. Qb3 {[%clk 0:02:41.8]} 16...
Nf4 {[%clk 0:02:33.4]} 17. Rfd1 {[%clk 0:02:31.3]} 17... Red8 {[%clk 0:02:27.7]}
18. Bf1 {[%clk 0:02:29.7]} 18... e6 {[%clk 0:02:13.7]} 19. Qxb6 {[%clk
0:02:22.7]} 19... axb6 {[%clk 0:02:12.7]} 20. a3 {[%clk 0:02:21.3]} 20... g5
{[%clk 0:02:04.3]} 21. g3 {[%clk 0:02:19.9]} 21... Ng6 {[%clk 0:02:03.9]} 22.
Re1 {[%clk 0:02:04.3]} 22... Rd5 {[%clk 0:02:01.8]} 23. Rad1 {[%clk 0:01:40.8]}
23... Rad8 {[%clk 0:01:59.5]} 24. Rxd5 {[%clk 0:01:26.9]} 24... Rxd5 {[%clk
0:01:58.7]} 25. Bg2 {[%clk 0:01:27.5]} 25... Rxe5 {[%clk 0:01:57.9]} 26. Rd1
{[%clk 0:01:28.1]} 26... Re2 {[%clk 0:01:52.4]} 27. b4 {[%clk 0:01:23.4]} 27...
Ra2 {[%clk 0:01:41.2]} 28. Rd8+ {[%clk 0:01:20.7]} 28... Kg7 {[%clk 0:01:40.3]}
29. Rb8 {[%clk 0:01:21.2]} 29... Rxa3 {[%clk 0:01:39.6]} 30. Rxb7 {[%clk
0:01:19.9]} 30... Rxc3 {[%clk 0:01:35]} 31. Rxb6 {[%clk 0:01:18.4]} 31... Rc1+
{[%clk 0:01:35.5]} 32. Bf1 {[%clk 0:01:18.4]} 32... Ne5 {[%clk 0:01:29.7]} 33.
Kg2 {[%clk 0:01:10.5]} 33... g4 {[%clk 0:01:28.5]} 34. b5 {[%clk 0:01:07.4]}
34... cxb5 {[%clk 0:01:25.6]} 35. Rxb5 {[%clk 0:01:04.3]} 35... Kf6 {[%clk
0:01:22.5]} 36. Rb4 {[%clk 0:00:59.8]} 36... h5 {[%clk 0:01:21.6]} 37. Rf4+
{[%clk 0:00:59.9]} 37... Kg7 {[%clk 0:01:16.5]} 38. Be2 {[%clk 0:00:49.9]} 38...
f5 {[%clk 0:01:14.4]} 39. Rd4 {[%clk 0:00:42.4]} 39... Rc2 {[%clk 0:01:13]} 40.
Kf1 {[%clk 0:00:41.7]} 40... Nf3 {[%clk 0:00:56.4]} 41. Bxf3 {[%clk 0:00:29.6]}
41... gxf3 {[%clk 0:00:56.1]} 42. Ke1 {[%clk 0:00:26]} 42... Re2+ {[%clk
0:00:49.2]} 43. Kf1 {[%clk 0:00:24.7]} 43... e5 {[%clk 0:00:46]} 44. Rd7+ {[%clk
0:00:19.6]} 44... Kg6 {[%clk 0:00:45]} 45. h4 {[%clk 0:00:18.8]} 45... e4 {[%clk
0:00:43.5]} 46. Rd6+ {[%clk 0:00:18.7]} 46... Kf7 {[%clk 0:00:43]} 47. Rd7+
{[%clk 0:00:17.6]} 47... Ke6 {[%clk 0:00:42.1]} 48. Ra7 {[%clk 0:00:15.7]} 48...
Rb2 {[%clk 0:00:42.1]} 49. Ke1 {[%clk 0:00:16.3]} 49... Rb1+ {[%clk 0:00:36.4]}
50. Kd2 {[%clk 0:00:16.7]} 50... Rb2+ {[%clk 0:00:36.7]} 51. Ke3 {[%clk
0:00:16.7]} 51... Re2+ {[%clk 0:00:36.3]} 52. Kf4 {[%clk 0:00:17.4]} 52... Rxf2
{[%clk 0:00:36.1]} 53. Ra6+ {[%clk 0:00:18]} 53... Kd5 {[%clk 0:00:35.8]} 54.
Kxf5 {[%clk 0:00:16.9]} 54... e3 {[%clk 0:00:35.4]} 55. Ra5+ {[%clk 0:00:16.3]}
55... Kd4 {[%clk 0:00:35.2]} 56. Re5 {[%clk 0:00:16.2]} 56... e2 {[%clk
0:00:34.5]} 57. Kf4 {[%clk 0:00:16.5]} 57... Rf1 {[%clk 0:00:34.4]} 58. Re4+
{[%clk 0:00:16.6]} 58... Kd3 {[%clk 0:00:34.6]} 59. Re3+ {[%clk 0:00:17]} 59...
Kd2 {[%clk 0:00:34.8]} 60. Rxf3 {[%clk 0:00:16.9]} 60... Rxf3+ {[%clk
0:00:34.3]} 61. Kxf3 {[%clk 0:00:17]} 61... e1=Q {[%clk 0:00:33.9]} 62. Kf4
{[%clk 0:00:16.6]} 62... Qe2 {[%clk 0:00:33.8]} 63. Kg5 {[%clk 0:00:17.3]} 63...
Qg4+ {[%clk 0:00:33.6]} 64. Kh6 {[%clk 0:00:18.2]} 64... Ke3 {[%clk 0:00:33]}
65. Kh7 {[%clk 0:00:19.1]} 65... Ke4 {[%clk 0:00:33.3]} 66. Kh8 {[%clk 0:00:20]}
66... Ke5 {[%clk 0:00:33.6]} 0-1

[Event "Early-Titled-Tuesday-Blitz-October-10-2023"]
[Site "Chess.com"]
[Date "2023.10.10"]
[Round "6"]
[White "JesseFebruary"]
[Black "stepanosinovsky"]
[Result "0-1"]
[WhiteElo "2053"]
[BlackElo "2383"]
[TimeControl "180+1"]
[EndTime "9:05:24 PDT"]
[Termination "stepanosinovsky won on time"]

1. e4 {[%clk 0:03:00.9]} 1... e5 {[%clk 0:02:55.8]} 2. Nf3 {[%clk 0:03:00.5]}
2... Nc6 {[%clk 0:02:54.9]} 3. d4 {[%clk 0:03:00.8]} 3... exd4 {[%clk
0:02:54.6]} 4. Bc4 {[%clk 0:03:01]} 4... Nf6 {[%clk 0:02:54.1]} 5. O-O {[%clk
0:03:00.5]} 5... Bc5 {[%clk 0:02:51.7]} 6. e5 {[%clk 0:02:59.6]} 6... d5 {[%clk
0:02:48.2]} 7. exf6 {[%clk 0:02:59.7]} 7... dxc4 {[%clk 0:02:49.1]} 8. Re1+
{[%clk 0:02:59.5]} 8... Be6 {[%clk 0:02:49.6]} 9. fxg7 {[%clk 0:02:52.7]} 9...
Rg8 {[%clk 0:02:48.8]} 10. Ng5 {[%clk 0:02:53.2]} 10... Qd5 {[%clk 0:02:48.5]}
11. Nxe6 {[%clk 0:02:49.8]} 11... fxe6 {[%clk 0:02:45.6]} 12. Nc3 {[%clk
0:02:39.1]} 12... Qf5 {[%clk 0:02:42.7]} 13. Ne4 {[%clk 0:02:03]} 13... O-O-O
{[%clk 0:02:34.3]} 14. Nxc5 {[%clk 0:02:00.5]} 14... Qxc5 {[%clk 0:02:34]} 15.
Qg4 {[%clk 0:01:57.5]} 15... d3 {[%clk 0:02:06.9]} 16. cxd3 {[%clk 0:01:53.5]}
16... cxd3 {[%clk 0:02:05.9]} 17. Bg5 {[%clk 0:01:47.5]} 17... Rxg7 {[%clk
0:01:38.5]} 18. Qxe6+ {[%clk 0:01:46]} 18... Rdd7 {[%clk 0:01:38.4]} 19. Bf6
{[%clk 0:01:20.4]} 19... Nd8 {[%clk 0:00:48.4]} 20. Bxd8 {[%clk 0:01:10.3]}
20... d2 {[%clk 0:00:48.8]} 21. Red1 {[%clk 0:01:02]} 21... Kxd8 {[%clk
0:00:47.4]} 22. Qf6+ {[%clk 0:00:59.9]} 22... Kc8 {[%clk 0:00:45]} 23. Rxd2
{[%clk 0:00:28.9]} 23... Rxd2 {[%clk 0:00:34.2]} 24. Qxg7 {[%clk 0:00:28.4]}
24... Qxf2+ {[%clk 0:00:33.4]} 25. Kh1 {[%clk 0:00:28.9]} 25... b6 {[%clk
0:00:19]} 26. Qg4+ {[%clk 0:00:26.8]} 26... Kb8 {[%clk 0:00:18.3]} 27. Qg8+
{[%clk 0:00:25.7]} 27... Kb7 {[%clk 0:00:17.8]} 28. Rg1 {[%clk 0:00:20]} 28...
Rxb2 {[%clk 0:00:16.7]} 29. Qd5+ {[%clk 0:00:19.9]} 29... Kc8 {[%clk 0:00:15.9]}
30. Qe6+ {[%clk 0:00:19.8]} 30... Kb7 {[%clk 0:00:16]} 31. Qd5+ {[%clk 0:00:20]}
31... Ka6 {[%clk 0:00:16.3]} 32. Qc4+ {[%clk 0:00:20.1]} 32... Ka5 {[%clk
0:00:15.6]} 33. Qc3+ {[%clk 0:00:19.8]} 33... Ka4 {[%clk 0:00:13.6]} 34. Qxc7
{[%clk 0:00:19.8]} 34... a5 {[%clk 0:00:12.4]} 35. Qc6+ {[%clk 0:00:19.6]} 35...
b5 {[%clk 0:00:12.1]} 36. Qe4+ {[%clk 0:00:19.4]} 36... Ka3 {[%clk 0:00:11.5]}
37. Qe7+ {[%clk 0:00:18.1]} 37... Kxa2 {[%clk 0:00:10.9]} 38. Qxh7 {[%clk
0:00:16]} 38... a4 {[%clk 0:00:10.3]} 39. Qf7+ {[%clk 0:00:15.3]} 39... Ka3
{[%clk 0:00:07.3]} 40. Ra1+ {[%clk 0:00:12.6]} 40... Ra2 {[%clk 0:00:05.1]} 41.
Qe7+ {[%clk 0:00:06.6]} 41... b4 {[%clk 0:00:04.5]} 42. Rxa2+ {[%clk 0:00:05.9]}
42... Kxa2 {[%clk 0:00:03.6]} 43. h3 {[%clk 0:00:05.5]} 43... b3 {[%clk
0:00:03.3]} 44. Qb4 {[%clk 0:00:02.3]} 44... a3 {[%clk 0:00:03.2]} 45. Kh2
{[%clk 0:00:01.2]} 45... Qc2 {[%clk 0:00:02.1]} 0-1

[Event "Early-Titled-Tuesday-Blitz-October-10-2023"]
[Site "Chess.com"]
[Date "2023.10.10"]
[Round "6"]
[White "vladislavkovalev"]
[Black "SALVA-DALI"]
[Result "0-1"]
[WhiteElo "2882"]
[BlackElo "2770"]
[TimeControl "180+1"]
[EndTime "9:05:25 PDT"]
[Termination "SALVA-DALI won by resignation"]

1. e4 {[%clk 0:03:00.9]} 1... c5 {[%clk 0:02:58.7]} 2. Nf3 {[%clk 0:03:01.4]}
2... Nc6 {[%clk 0:02:58.9]} 3. Bb5 {[%clk 0:03:01.3]} 3... e6 {[%clk 0:02:58.8]}
4. Bxc6 {[%clk 0:03:00.7]} 4... bxc6 {[%clk 0:02:58.9]} 5. O-O {[%clk
0:03:00.7]} 5... Ne7 {[%clk 0:02:54.1]} 6. Re1 {[%clk 0:02:56.2]} 6... d6 {[%clk
0:02:53.1]} 7. e5 {[%clk 0:02:52.6]} 7... Ng6 {[%clk 0:02:53.1]} 8. d3 {[%clk
0:02:42.1]} 8... dxe5 {[%clk 0:02:53.2]} 9. Nxe5 {[%clk 0:02:40]} 9... Bd6
{[%clk 0:02:53.9]} 10. Nc4 {[%clk 0:02:36.5]} 10... Bc7 {[%clk 0:02:53.1]} 11.
Nc3 {[%clk 0:02:34.1]} 11... O-O {[%clk 0:02:53.1]} 12. Be3 {[%clk 0:02:29.1]}
12... Qh4 {[%clk 0:02:42.6]} 13. g3 {[%clk 0:02:26.2]} 13... Qh3 {[%clk
0:02:43.2]} 14. Qf3 {[%clk 0:01:46.2]} 14... Rb8 {[%clk 0:02:42.3]} 15. Qg2
{[%clk 0:01:29.5]} 15... Qf5 {[%clk 0:02:38.9]} 16. Ne4 {[%clk 0:01:26.4]} 16...
e5 {[%clk 0:02:29.4]} 17. Ned6 {[%clk 0:01:18.3]} 17... Bxd6 {[%clk 0:02:00.4]}
18. Nxd6 {[%clk 0:01:19.2]} 18... Qe6 {[%clk 0:01:58.8]} 19. Nc4 {[%clk
0:01:05.7]} 19... Qd5 {[%clk 0:01:52.8]} 20. b3 {[%clk 0:01:04.1]} 20... Bg4
{[%clk 0:01:51.6]} 21. Bd2 {[%clk 0:00:41.1]} 21... Bf3 {[%clk 0:01:51.1]} 22.
Qh3 {[%clk 0:00:39.7]} 22... f5 {[%clk 0:01:46.1]} 23. Bc3 {[%clk 0:00:35.6]}
23... Rbe8 {[%clk 0:01:46.7]} 24. Re3 {[%clk 0:00:25.2]} 24... f4 {[%clk
0:01:45.4]} 25. gxf4 {[%clk 0:00:17.4]} 25... Rxf4 {[%clk 0:01:39.6]} 26. Kf1
{[%clk 0:00:15.2]} 26... e4 {[%clk 0:01:21.4]} 27. Rae1 {[%clk 0:00:08]} 27...
Ref8 {[%clk 0:01:19.2]} 28. dxe4 {[%clk 0:00:06.5]} 28... Bxe4 {[%clk
0:01:19.4]} 29. Qg3 {[%clk 0:00:02.5]} 29... Rxf2+ {[%clk 0:01:11]} 30. Qxf2
{[%clk 0:00:03.4]} 30... Rxf2+ {[%clk 0:01:11.3]} 31. Kxf2 {[%clk 0:00:04.3]}
31... Qf5+ {[%clk 0:01:07.3]} 32. Ke2 {[%clk 0:00:05]} 32... Qd5 {[%clk
0:00:39.6]} 33. Rd1 {[%clk 0:00:04.3]} 33... Nf4+ {[%clk 0:00:38.9]} 34. Kf2
{[%clk 0:00:03.6]} 34... Qxd1 {[%clk 0:00:37.2]} 35. Rxe4 {[%clk 0:00:04.3]}
35... Qxc2+ {[%clk 0:00:37.6]} 36. Kf3 {[%clk 0:00:05]} 36... Nd5 {[%clk
0:00:31]} 37. Bb2 {[%clk 0:00:03.3]} 37... Qd3+ {[%clk 0:00:30.3]} 38. Ne3
{[%clk 0:00:04]} 38... Nxe3 {[%clk 0:00:27.1]} 39. Rxe3 {[%clk 0:00:04.9]} 39...
Qf5+ {[%clk 0:00:27.8]} 40. Kg3 {[%clk 0:00:05.6]} 40... h5 {[%clk 0:00:26.7]}
41. h3 {[%clk 0:00:05.2]} 41... h4+ {[%clk 0:00:24.8]} 42. Kg2 {[%clk
0:00:05.1]} 42... Qd5+ {[%clk 0:00:23.2]} 43. Kf2 {[%clk 0:00:03.7]} 43... Qd2+
{[%clk 0:00:23.2]} 44. Re2 {[%clk 0:00:04.5]} 44... Qf4+ {[%clk 0:00:23.8]} 45.
Ke1 {[%clk 0:00:03.7]} 45... Qg3+ {[%clk 0:00:24.3]} 46. Kd2 {[%clk 0:00:03.6]}
46... Qxh3 {[%clk 0:00:25.1]} 47. Bc3 {[%clk 0:00:02.2]} 47... Qd7+ {[%clk
0:00:24.4]} 48. Kc2 {[%clk 0:00:02.2]} 48... h3 {[%clk 0:00:25]} 49. Be5 {[%clk
0:00:03.1]} 49... Qf5+ {[%clk 0:00:24.7]} 50. Kd2 {[%clk 0:00:03.6]} 50... Qg5+
{[%clk 0:00:24.3]} 51. Ke1 {[%clk 0:00:03]} 51... c4 {[%clk 0:00:22.1]} 52. bxc4
{[%clk 0:00:03.3]} 52... Qc1+ {[%clk 0:00:22.4]} 53. Kf2 {[%clk 0:00:04.2]}
53... Qxc4 {[%clk 0:00:23.1]} 54. Bh2 {[%clk 0:00:01.9]} 54... Qf7+ {[%clk
0:00:20.6]} 55. Kg3 {[%clk 0:00:01.9]} 55... Qg6+ {[%clk 0:00:21.2]} 56. Kxh3
{[%clk 0:00:02.3]} 56... Qh5+ {[%clk 0:00:21.6]} 0-1

[Event "Early-Titled-Tuesday-Blitz-October-10-2023"]
[Site "Chess.com"]
[Date "2023.10.10"]
[Round "6"]
[White "PatzerSmashers"]
[Black "Alphafischer2019"]
[Result "1-0"]
[WhiteElo "2429"]
[BlackElo "2570"]
[TimeControl "180+1"]
[EndTime "9:05:29 PDT"]
[Termination "PatzerSmashers won by resignation"]

1. d4 {[%clk 0:03:00.9]} 1... Nf6 {[%clk 0:02:59]} 2. c4 {[%clk 0:03:00.8]} 2...
b6 {[%clk 0:02:58.7]} 3. f3 {[%clk 0:03:00.1]} 3... Nc6 {[%clk 0:02:57.9]} 4. e4
{[%clk 0:02:55.3]} 4... e5 {[%clk 0:02:58]} 5. d5 {[%clk 0:02:53.2]} 5... Ne7
{[%clk 0:02:58.6]} 6. Nc3 {[%clk 0:02:51.5]} 6... Ng6 {[%clk 0:02:59]} 7. a3
{[%clk 0:02:50.9]} 7... a5 {[%clk 0:02:58.6]} 8. Be3 {[%clk 0:02:48.8]} 8... Bc5
{[%clk 0:02:57.4]} 9. Qd2 {[%clk 0:02:43.7]} 9... Bxe3 {[%clk 0:02:53.6]} 10.
Qxe3 {[%clk 0:02:44.6]} 10... d6 {[%clk 0:02:54.3]} 11. Nge2 {[%clk 0:02:31]}
11... O-O {[%clk 0:02:51.7]} 12. g3 {[%clk 0:02:26.2]} 12... Nd7 {[%clk
0:02:48]} 13. h4 {[%clk 0:02:16]} 13... Nc5 {[%clk 0:02:45.4]} 14. h5 {[%clk
0:02:13.6]} 14... Nh8 {[%clk 0:02:40.5]} 15. g4 {[%clk 0:02:09.9]} 15... f6
{[%clk 0:02:37.2]} 16. Ng3 {[%clk 0:02:03.1]} 16... Nf7 {[%clk 0:02:35.6]} 17.
Nf5 {[%clk 0:01:58.1]} 17... h6 {[%clk 0:02:24.1]} 18. Be2 {[%clk 0:01:52.7]}
18... Bxf5 {[%clk 0:02:12.6]} 19. gxf5 {[%clk 0:01:53.6]} 19... Nb3 {[%clk
0:02:13.1]} 20. Rd1 {[%clk 0:01:48]} 20... Nd4 {[%clk 0:02:13.6]} 21. Kf2 {[%clk
0:01:47.4]} 21... Ng5 {[%clk 0:02:11.7]} 22. Rdg1 {[%clk 0:01:41.5]} 22... Qe7
{[%clk 0:02:09.6]} 23. Bd1 {[%clk 0:01:40.4]} 23... Rab8 {[%clk 0:02:01.1]} 24.
Ba4 {[%clk 0:01:39.4]} 24... Ndxf3 {[%clk 0:01:59.8]} 25. Rg3 {[%clk 0:01:24.8]}
25... Nd4 {[%clk 0:02:00.1]} 26. Kg2 {[%clk 0:01:09]} 26... Kh8 {[%clk
0:01:57.5]} 27. Qd2 {[%clk 0:00:51.2]} 27... Rfc8 {[%clk 0:01:55.9]} 28. Bc6
{[%clk 0:00:50.1]} 28... Qf7 {[%clk 0:01:49.4]} 29. Qd3 {[%clk 0:00:41.3]} 29...
Rf8 {[%clk 0:01:43.6]} 30. Nb5 {[%clk 0:00:29.3]} 30... Nxb5 {[%clk 0:01:36.6]}
31. cxb5 {[%clk 0:00:30.2]} 31... Qe7 {[%clk 0:01:31.3]} 32. Qc4 {[%clk
0:00:23.4]} 32... Kg8 {[%clk 0:01:26.4]} 33. a4 {[%clk 0:00:23]} 33... Kf7
{[%clk 0:01:26.2]} 34. b3 {[%clk 0:00:21.9]} 34... Rh8 {[%clk 0:01:26.3]} 35.
Kf2 {[%clk 0:00:20.6]} 35... Kf8 {[%clk 0:01:24.9]} 36. Qe2 {[%clk 0:00:20.9]}
36... g6 {[%clk 0:01:12.9]} 37. hxg6 {[%clk 0:00:19.5]} 37... Kg7 {[%clk
0:01:13.1]} 38. Rh5 {[%clk 0:00:15.7]} 38... Qf8 {[%clk 0:01:10]} 39. Rg1 {[%clk
0:00:15]} 39... Kg8 {[%clk 0:01:07.4]} 40. Ke3 {[%clk 0:00:12.1]} 40... Qg7
{[%clk 0:01:07.3]} 41. Rgh1 {[%clk 0:00:11.1]} 41... Kf8 {[%clk 0:01:06.8]} 42.
Qf2 {[%clk 0:00:10.7]} 42... Kg8 {[%clk 0:01:03.9]} 43. Qh4 {[%clk 0:00:10.6]}
43... Kf8 {[%clk 0:01:02.7]} 44. Rxh6 {[%clk 0:00:10.3]} 44... Rxh6 {[%clk
0:01:03.3]} 45. Qxh6 {[%clk 0:00:11.2]} 45... Qxh6 {[%clk 0:01:03.9]} 46. Rxh6
{[%clk 0:00:11.7]} 46... Kg7 {[%clk 0:01:04.7]} 47. Rh5 {[%clk 0:00:11.2]} 47...
Rd8 {[%clk 0:01:05.3]} 48. Rh1 {[%clk 0:00:07.1]} 48... Kg8 {[%clk 0:01:03]} 49.
Rh4 {[%clk 0:00:03.3]} 49... Kg7 {[%clk 0:01:02.9]} 50. Rh2 {[%clk 0:00:02.9]}
50... Rh8 {[%clk 0:01:03.8]} 51. Rxh8 {[%clk 0:00:02.2]} 51... Kxh8 {[%clk
0:01:04.7]} 52. Bd7 {[%clk 0:00:02.7]} 52... Kg7 {[%clk 0:01:05.3]} 53. Be6
{[%clk 0:00:03.6]} 53... Nh3 {[%clk 0:01:05.7]} 54. Bf7 {[%clk 0:00:03.5]} 54...
Nf4 {[%clk 0:01:06.6]} 55. Be6 {[%clk 0:00:03.6]} 55... Ng2+ {[%clk 0:01:05.9]}
56. Kf3 {[%clk 0:00:03.8]} 56... Ne1+ {[%clk 0:01:05.6]} 57. Ke3 {[%clk
0:00:03.8]} 57... Nc2+ {[%clk 0:01:06.3]} 58. Kd3 {[%clk 0:00:04.7]} 58... Nd4
{[%clk 0:01:06.9]} 59. Kc3 {[%clk 0:00:05.3]} 59... Kf8 {[%clk 0:01:03.9]} 60.
b4 {[%clk 0:00:05.1]} 60... axb4+ {[%clk 0:01:02.2]} 61. Kxb4 {[%clk 0:00:06]}
61... Ne2 {[%clk 0:01:00.4]} 62. a5 {[%clk 0:00:06]} 62... Ng3 {[%clk
0:00:58.8]} 63. a6 {[%clk 0:00:05.9]} 63... Nxe4 {[%clk 0:00:53.2]} 64. a7
{[%clk 0:00:06.8]} 64... Kg7 {[%clk 0:00:53.5]} 65. a8=Q {[%clk 0:00:07.3]}
65... Nc5 {[%clk 0:00:54.1]} 66. Qg8+ {[%clk 0:00:07.4]} 66... Kh6 {[%clk
0:00:53]} 67. Qh7+ {[%clk 0:00:08.3]} 67... Kg5 {[%clk 0:00:53.2]} 68. g7 {[%clk
0:00:09.2]} 68... Kf4 {[%clk 0:00:52.7]} 69. g8=Q {[%clk 0:00:09.4]} 1-0